fUSD/lending_fUSD_20260109
["ID","MTS","AMOUNT","RATE_DAILY","PERIOD"]
[401144395,1767973847102,-3323.0,0.00017046,2]
[401144397,1767973847111,-1405.0,0.00017046,2]
[401144398,1767973847121,-1330.0,0.00017046,2]
[401144399,1767973847130,-614.0,0.00017046,2]
[401144400,1767973847140,-1266.0,0.00017046,2]
[401144401,1767973847149,-505.0,0.00017046,2]
[401144402,1767973847159,-916.599,0.00017046,2]
[401144403,1767973847168,-150.0,0.00017046,2]
[401144404,1767973847178,-150.0,0.00017046,2]
[401144405,1767973847188,-1312.0,0.00017046,2]
[401144406,1767973847197,-2459.15,0.00017046,2]
[401144407,1767973847206,-566.0,0.00017046,2]
[401144408,1767973847216,-6553.0,0.00017046,2]
[401144409,1767973847225,-322.6107,0.00017099,2]
[401144410,1767973847234,-553.64373807,0.00017099,2]
[401144411,1767973847243,-1124.58,0.00017141,2]
[401144412,1767973847253,-732.4,0.00017178,2]
[401144413,1767973847262,-214.43976733,0.00017182,2]
[401144414,1767973847272,-159.10718443,0.00017216,2]
[401144415,1767973847281,-1816.79771883,0.00017277,2]
[401144416,1767973847291,-2445.42555527,0.000174,2]
[401144417,1767973847301,-6348.05461518,0.00017421,2]
[401144418,1767973847311,-2000.0,0.000175,2]
[401144419,1767973847321,-179.14,0.00017534,2]
[401144420,1767973847331,-1225.2,0.00017534,2]
[401144421,1767973847340,-171.4,0.00017534,2]
[401144422,1767973847349,-150.0,0.00017534,2]
[401144423,1767973847359,-179.14,0.00017534,2]
[401144424,1767973847369,-1225.2,0.00017534,2]
[401144425,1767973847379,-171.4,0.00017534,2]
[401144426,1767973847389,-150.0,0.00017534,2]
[401144427,1767973847399,-179.14,0.00017534,2]
[401144428,1767973847409,-150.0,0.00017534,2]
[401144429,1767973847418,-179.14,0.00017534,2]
[401144430,1767973847428,-1225.2,0.00017534,2]
[401144431,1767973847437,-171.4,0.00017534,2]
[401144432,1767973847447,-150.0,0.00017534,2]
[401144433,1767973847456,-1225.2,0.00017534,2]
[401144434,1767973847466,-171.4,0.00017534,2]
[401144435,1767973847475,-179.14,0.00017534,2]
[401144436,1767973847486,-150.0,0.00017534,2]
[401144437,1767973847496,-1225.2,0.00017534,2]
[401144438,1767973847506,-358.28,0.00017534,2]
[401144439,1767973847515,-171.4,0.00017534,2]
[401144440,1767973847525,-166.5,0.00017534,2]
[401144441,1767973847534,-171.0,0.00017608,2]
[401144442,1767973847544,-1148.0,0.00017634,2]
[401144443,1767973847553,-2195.93041534,0.0001764,2]
[401144444,1767973847563,-574.12855637,0.00017647,2]
[401144445,1767973847572,-171.0,0.00017663,2]
[401144446,1767973847581,-823.0,0.00017765,2]
[401144447,1767973847590,-164.42033085,0.00017785,2]
[401144448,1767973847600,-171.0,0.00017817,2]
[401144449,1767973847609,-171.0,0.00017819,2]
[401144450,1767973847620,-21571.62172927,0.0001783,2]
[401144451,1767973847630,-2000.0,0.00017856,2]
[401144452,1767973847641,-200.0,0.00017856,2]
[401144453,1767973847651,-10000.0,0.000179,2]
[401144454,1767973847660,-1000.0,0.000179,2]
[401144455,1767973847670,-537.80001072,0.000179,2]
[401144456,1767973847680,-2387.99521401,0.000179,2]
[401144457,1767973847689,-2387.99521401,0.000179,2]
[401144458,1767973847699,-2387.99521401,0.000179,2]
[401144459,1767973847709,-2387.99521401,0.000179,2]
[401144460,1767973847718,-2387.99521401,0.000179,2]
[401144461,1767973847727,-2387.99521401,0.000179,2]
[401144462,1767973847737,-2387.99521401,0.000179,2]
[401144463,1767973847747,-214.43976733,0.000179,2]
[401144464,1767973847756,-2387.99521401,0.000179,2]
[401144465,1767973847766,-6348.05461518,0.000179,2]
[401144466,1767973847776,-232.002122,0.000179,2]
[401144467,1767973847785,-242.456146,0.000179,2]
[401144468,1767973847794,-183.936771,0.000179,2]
[401144469,1767973847805,-183.936771,0.000179,2]
[401144470,1767973847815,-183.936771,0.000179,2]
[401144471,1767973847825,-183.936771,0.000179,2]
[401144472,1767973847834,-297.140674,0.000179,2]
[401144473,1767973847844,-151.0,0.000179,2]
[401144474,1767973847854,-151.0,0.000179,2]
[401144475,1767973847864,-151.0,0.000179,2]
[401144476,1767973847874,-151.0,0.000179,2]
[401144477,1767973847883,-151.0,0.000179,2]
[401144478,1767973847892,-773.31348478,0.000179,2]
[401144479,1767973847901,-4834.31017102,0.000179,2]
[401144480,1767973847911,-14573.64864428,0.000179,2]
[401144481,1767973847920,-151.0,0.000179,2]
[401144482,1767973847929,-240.670591,0.000179,2]
[401144483,1767973847939,-1816.79771883,0.000179,2]
[401144484,1767973847949,-151.0,0.000179,2]
[401144485,1767973847959,-151.0,0.000179,2]
[401144486,1767973847968,-151.0,0.000179,2]
[401144487,1767973847978,-151.0,0.000179,2]
[401144488,1767973847987,-151.0,0.000179,2]
[401144489,1767973847997,-151.0,0.000179,2]
[401144490,1767973848007,-1692.0,0.000179,2]
[401144491,1767973848016,-171.0,0.00017917,2]
[401144492,1767973848027,-253.0,0.00017944,2]
[401144493,1767973848036,-3292.0,0.00017954,2]
[401144494,1767973848046,-1124.58,0.00017957,2]
[401144495,1767973848056,-500.0,0.00017973,2]
[401144496,1767973848066,-507.266222,0.00017973,2]
[401144497,1767973848075,-500.0,0.00017973,2]
[401144498,1767973848084,-500.0,0.00017973,2]
[401144499,1767973848094,-500.0,0.00017973,2]
[401144500,1767973848104,-500.0,0.00017973,2]
[401144501,1767973848113,-500.0,0.00017973,2]
[401144502,1767973848123,-500.0,0.00017973,2]
[401144503,1767973848132,-280.94046828,0.00017973,2]
[401144504,1767973848142,-500.0,0.00017973,2]
[401144505,1767973848152,-500.0,0.00017973,2]
[401144506,1767973848162,-500.0,0.00017973,2]
[401144507,1767973848172,-500.0,0.00017973,2]
[401144508,1767973848181,-500.0,0.00017973,2]
[401144509,1767973848191,-609.94892981,0.00017973,2]
[401144510,1767973848200,-500.0,0.00017973,2]
[401144511,1767973848211,-500.0,0.00017973,2]
[401144512,1767973848221,-500.0,0.00017973,2]
[401144513,1767973848231,-500.0,0.00017973,2]
[401144514,1767973848242,-500.0,0.00017973,2]
[401144515,1767973848251,-500.0,0.00017973,2]
[401144516,1767973848261,-286.84842062,0.00017973,2]
[401144517,1767973848271,-500.0,0.00017973,2]
[401144518,1767973848282,-500.0,0.00017973,2]
[401144519,1767973848292,-500.0,0.00017973,2]
[401144520,1767973848611,-500.0,0.00017973,2]
[401144521,1767973848632,-500.0,0.00017973,2]
[401144522,1767973848643,-500.0,0.00017973,2]
[401144523,1767973848653,-500.0,0.00017973,2]
[401144524,1767973848662,-500.0,0.00017973,2]
[401144525,1767973848671,-500.0,0.00017973,2]
[401144526,1767973848681,-500.0,0.00017973,2]
[401144527,1767973848691,-500.0,0.00017973,2]
[401144528,1767973848701,-500.0,0.00017973,2]
[401144529,1767973848711,-500.0,0.00017973,2]
[401144530,1767973848720,-500.0,0.00017973,2]
[401144531,1767973848730,-501.05787152,0.00017973,2]
[401144532,1767973848743,-578.02071049,0.00017973,2]
[401144533,1767973848753,-500.0,0.00017973,2]
[401144534,1767973848762,-429.09119552,0.00017973,2]
[401144535,1767973848772,-500.0,0.00017973,2]
[401144536,1767973848781,-500.0,0.00017973,2]
[401144537,1767973848791,-500.0,0.00017973,2]
[401144538,1767973848801,-500.0,0.00017973,2]
[401144539,1767973848814,-500.0,0.00017973,2]
[401144540,1767973848823,-500.0,0.00017973,2]
[401144541,1767973848832,-500.0,0.00017973,2]
[401144542,1767973848842,-500.0,0.00017973,2]
[401144543,1767973848854,-500.0,0.00017973,2]
[401144544,1767973848864,-500.0,0.00017973,2]
[401144545,1767973848874,-165.3256661,0.00017973,2]
[401144546,1767973848885,-546.15438132,0.00017973,2]
[401144547,1767973848895,-208.06887662,0.00017973,2]
[401144548,1767973848904,-182.86859792,0.00017973,2]
[401144549,1767973848914,-500.0,0.00017973,2]
[401144550,1767973848923,-151.0,0.00017973,2]
[401144551,1767973848933,-151.0,0.00017973,2]
[401144552,1767973848942,-151.0,0.00017973,2]
[401144553,1767973848952,-185.94513151,0.00017973,2]
[401144554,1767973848962,-500.0,0.00017982,2]
[401144555,1767973848972,-516.29838033,0.0001799,2]
[401144556,1767973848982,-516.29838033,0.0001799,2]
[401144557,1767973848994,-4246.4305835,0.00017997,2]
[401144558,1767973849004,-13312.3388936,0.00017997,2]
[401144559,1767973849014,-1475.2144101,0.00017997,2]
[401144560,1767973849024,-221773.7102486,0.00017997,2]
[401144561,1767973849034,-19805.8388572,0.00017997,2]
[401144562,1767973849044,-261.78722899,0.00017999,2]
[401144563,1767973849054,-300.0,0.00017999,2]
[401144564,1767973849064,-666.0,0.00017999,2]
[401144565,1767973849074,-300.0,0.00017999,2]
[401144566,1767973849083,-300.0,0.00017999,2]
[401144567,1767973849093,-300.0,0.00017999,2]
[401144568,1767973849102,-666.0,0.00017999,2]
[401144569,1767973849113,-150.0,0.00017999,2]
[401144570,1767973849122,-1650585.68389265,0.00018,2]
[401144571,1767973849718,-1417.67063,0.00018,2]
[401144572,1767973849730,-1573.28442931,0.00018,2]
[401144573,1767973849811,-400.0,0.00018,2]
[401144574,1767973849823,-8640.00000102,0.00018,2]
[401144575,1767973849896,-791.95008848,0.00018,2]
[401144576,1767973849907,-36602.85553446,0.00018,2]
[401144577,1767973849918,-9132.95424,0.00018,2]
[401144578,1767973850449,-1243.62325924,0.00018,2]
[401144579,1767973850460,-163824.68674012,0.00018,2]
[401144580,1767973850471,-513.16680046,0.00018,2]
[401144581,1767973850483,-549830.64322528,0.00018,2]
[401144642,1767974483570,471.3054651,0.000202,30]
[401144646,1767974804597,365.336,0.000202,30]
[401144647,1767974871403,1560.50013027,0.000202,30]
[401144648,1767974966145,-185.72,0.00011275,2]
[401144649,1767974966167,-195.0,0.00011275,2]
[401144650,1767974966189,-185.62708354,0.00011275,2]
[401144651,1767974966208,-195.0,0.00012265,2]
[401144652,1767974966228,-195.0,0.00012402,2]
[401144653,1767974966248,-250.0,0.00012402,2]
[401144654,1767974966267,-189.50825211,0.00012402,2]
[401144655,1767974966288,-250.0,0.00012402,2]
[401144656,1767975006336,61205.8144038,0.000202,30]
[401144657,1767975006395,161749.87729344,0.000202,30]
[401144665,1767975031663,-4238.569781,0.00012711,2]
[401144666,1767975031672,-257.63,0.00012775,2]
[401144667,1767975031681,-370.25497861,0.0001281,2]
[401144668,1767975031691,-463.78,0.0001291,2]
[401144669,1767975031700,-370.2549786,0.00013105,2]
[401144670,1767975031710,-843.617,0.0001322,2]
[401144671,1767975031720,-269.83,0.00013259,2]
[401144672,1767975031730,-1200.0,0.00013297,2]
[401144673,1767975031741,-300.0,0.00013297,2]
[401144674,1767975031751,-14863.86604348,0.00013298,2]
[401144675,1767975031760,-858.63013865,0.00013298,2]
[401144676,1767975031769,-838.67683792,0.00013298,2]
[401144677,1767975031779,-858.63013865,0.00013298,2]
[401144678,1767975031789,-70010.26763799,0.000133,2]
[401144679,1767975031863,-15556.68107439,0.000133,2]
[401144680,1767975031874,-3455.44836013,0.000133,2]
[401144681,1767975031886,-13693.4294689,0.000133,2]
[401144682,1767975031954,-424.03221248,0.00013299,2]
[401144683,1767975031965,-75.96778752,0.00013299,2]
[401144684,1767975031976,-157.53718294,0.00013299,2]
[401144685,1767975031985,-57.96502954,0.000133,2]
[401144686,1767975031996,-1903.7200289,0.000133,2]
[401144688,1767975032430,-517.75858269,0.00013299,2]
[401144689,1767975032440,-203.86654865,0.00013299,2]
[401144690,1767975032449,-677.41898433,0.000133,2]
[401144691,1767975032460,-26003.57209617,0.000133,2]
[401144692,1767975032474,-32285.38944181,0.000133,2]
[401144693,1767975032487,-1305.0,0.000133,2]
[401144743,1767975038968,-195.2733431,0.00013299,2]
[401144745,1767975038989,-108.00921425,0.00013299,2]
[401144748,1767975039013,-84.23021831,0.00013299,2]
[401144750,1767975039029,-500.0,0.00013299,2]
[401144751,1767975039039,-500.0,0.00013299,2]
[401144753,1767975039049,-500.0,0.00013299,2]
[401144755,1767975039058,-500.0,0.00013299,2]
[401144757,1767975039068,-500.0,0.00013299,2]
[401144759,1767975039078,-500.0,0.00013299,2]
[401144762,1767975039087,-500.0,0.00013299,2]
[401144764,1767975039097,-483.65938835,0.00013299,2]
[401144766,1767975039107,-500.0,0.00013299,2]
[401144768,1767975039116,-500.0,0.00013299,2]
[401144770,1767975039128,-500.0,0.00013299,2]
[401144771,1767975039138,-500.0,0.00013299,2]
[401144773,1767975039148,-500.0,0.00013299,2]
[401144776,1767975039158,-500.0,0.00013299,2]
[401144777,1767975039168,-500.0,0.00013299,2]
[401144780,1767975039178,-500.0,0.00013299,2]
[401144781,1767975039188,-500.0,0.00013299,2]
[401144783,1767975039198,-500.0,0.00013299,2]
[401144786,1767975039210,-500.0,0.00013299,2]
[401144788,1767975039219,-500.0,0.00013299,2]
[401144790,1767975039229,-835051.10787784,0.000133,2]
[401144792,1767975039249,-513.0,0.000134,2]
[401144793,1767975039272,-370.2549786,0.000134,2]
[401144795,1767975039289,-214.43976738,0.000134,2]
[401144797,1767975039300,-729.15430561,0.0001348,2]
[401144799,1767975039311,-1000.0,0.000135,2]
[401144801,1767975039321,-500.0,0.00013599,2]
[401144803,1767975039332,-500.0,0.00013698,2]
[401144806,1767975039344,-500.0,0.00013698,2]
[401144807,1767975039354,-500.0,0.00013698,2]
[401144810,1767975039364,-500.0,0.00013698,2]
[401144812,1767975039374,-500.0,0.00013698,2]
[401144813,1767975039384,-499.04549515,0.00013698,2]
[401144815,1767975039395,-500.0,0.00013698,2]
[401144817,1767975039405,-500.0,0.00013698,2]
[401144819,1767975039415,-200.0,0.00013699,2]
[401144821,1767975039424,-500.0,0.00013699,2]
[401144823,1767975039435,-500.0,0.00013699,2]
[401144826,1767975039446,-500.0,0.00013699,2]
[401144827,1767975039458,-500.0,0.00013699,2]
[401144830,1767975039469,-500.0,0.00013699,2]
[401144831,1767975039478,-500.0,0.00013699,2]
[401144834,1767975039490,-500.0,0.00013699,2]
[401144836,1767975039499,-500.0,0.00013699,2]
[401144838,1767975039510,-500.0,0.00013699,2]
[401144840,1767975039521,-500.0,0.00013699,2]
[401144842,1767975039533,-500.0,0.00013699,2]
[401144843,1767975039546,-500.0,0.00013699,2]
[401144845,1767975039556,-474.05561982,0.00013699,2]
[401144847,1767975039566,-500.0,0.00013699,2]
[401144850,1767975039576,-500.0,0.00013699,2]
[401144851,1767975039585,-500.0,0.00013699,2]
[401144854,1767975039596,-500.0,0.00013699,2]
[401144856,1767975039605,-500.0,0.00013699,2]
[401144858,1767975039614,-500.0,0.00013699,2]
[401144860,1767975039624,-500.0,0.00013699,2]
[401144862,1767975039634,-500.0,0.00013699,2]
[401144864,1767975039644,-500.0,0.00013699,2]
[401144866,1767975039653,-500.0,0.00013699,2]
[401144868,1767975039663,-3375.5,0.000137,2]
[401144870,1767975039673,-3375.5,0.000137,2]
[401144872,1767975039683,-14863.8660434,0.00013809,2]
[401144874,1767975039692,-858.63013864,0.00013955,2]
[401144876,1767975039701,-858.63013864,0.00013955,2]
[401144878,1767975039711,-1000.0,0.00014,2]
[401144880,1767975039721,-2500.0,0.00014053,2]
[401144882,1767975039730,-600.0,0.00014053,2]
[401144884,1767975039740,-600.0,0.00014053,2]
[401144886,1767975039750,-600.0,0.00014053,2]
[401144888,1767975039759,-600.0,0.00014053,2]
[401144890,1767975039768,-600.0,0.00014053,2]
[401144892,1767975039778,-1084.92750697,0.00014055,2]
[401144894,1767975039788,-187.53,0.00014117,2]
[401144896,1767975039797,-214.43976733,0.0001415,2]
[401144898,1767975039805,-165.88,0.0001422,2]
[401144900,1767975039815,-14863.8660434,0.00014321,2]
[401144902,1767975039824,-2334.39,0.00014389,2]
[401144904,1767975039833,-217.14,0.00014397,2]
[401144906,1767975039843,-500.0,0.00014541,3]
[401144908,1767975039854,-420.0,0.00014578,2]
[401144910,1767975039863,-858.63013864,0.00014613,2]
[401144912,1767975039873,-1680.0,0.00014627,2]
[401144914,1767975039883,-300.94862606,0.00014726,2]
[401144916,1767975039892,-500.0,0.00014763,2]
[401144918,1767975039902,-500.0,0.00014763,2]
[401144920,1767975039911,-418.63063862,0.00014763,2]
[401144922,1767975039920,-14863.8660434,0.00014832,2]
[401144924,1767975039930,-151.0,0.00014844,2]
[401144926,1767975039940,-214.43976733,0.000149,2]
[401144928,1767975039949,-838.67683792,0.0001496,2]
[401144930,1767975039958,-516.29838033,0.00014991,2]
[401144932,1767975039967,-31544.56506513,0.00015001,2]
[401144934,1767975039977,-858.63013864,0.0001527,2]
[401144936,1767975039987,-14863.8660434,0.00015343,2]
[401144938,1767975039996,-31654.74859135,0.00015368,2]
[401144947,1767975040075,-421.99999811,0.00013699,2]
[401144950,1767975040086,-78.00000189,0.00013699,2]
[401144952,1767975040096,-3201.24766956,0.00015368,2]
[401144958,1767975040157,-25852.51363961,0.00015368,2]
[401144961,1767975040167,-218.5301037,0.00015456,2]
[401144963,1767975040176,-214.43976733,0.0001565,2]
[401144965,1767975040185,-14863.8660434,0.00015855,2]
[401144967,1767975040194,-312.0,0.00015863,2]
[401144968,1767975040204,-10315.79032297,0.000159,2]
[401144970,1767975040214,-318.9635124,0.000159,2]
[401144972,1767975040223,-318.9635124,0.000159,2]
[401144975,1767975040234,-318.9635124,0.000159,2]
[401144977,1767975040243,-318.9635124,0.000159,2]
[401144979,1767975040253,-318.9635124,0.000159,2]
[401144981,1767975040262,-1000.0,0.00015918,2]
[401144983,1767975040271,-858.63013864,0.00015928,2]
[401144985,1767975040280,-587.0,0.00015982,2]
[401144987,1767975040290,-2351.0,0.00016089,2]
[401144989,1767975040299,-152.0,0.00016144,3]
[401144991,1767975040309,-217.14,0.00016197,2]
[401144993,1767975040318,-152.0,0.00016318,4]
[401144995,1767975040327,-1453.95,0.00016331,2]
[401144997,1767975040336,-1854.32242241,0.00016366,2]
[401145005,1767975040413,-269.43903282,0.00016366,2]
[401145007,1767975040424,-2742.36906112,0.00016366,2]
[401145068,1767975040980,-271.8770772,0.00016366,2]
[401145072,1767975041006,-9725.85844985,0.00016366,2]
[401145074,1767975041015,-10315.79032297,0.000164,2]
[401145076,1767975041024,-214.43976733,0.000164,2]
[401145078,1767975041034,-500.0,0.00016438,2]
[401145080,1767975041044,-500.0,0.00016438,2]
[401145082,1767975041054,-500.0,0.00016438,2]
[401145084,1767975041064,-500.0,0.00016438,2]
[401145086,1767975041073,-500.0,0.00016438,2]
[401145088,1767975041083,-500.0,0.00016438,2]
[401145090,1767975041093,-500.0,0.00016438,2]
[401145092,1767975041102,-500.0,0.00016438,2]
[401145094,1767975041112,-500.0,0.00016438,2]
[401145096,1767975041121,-500.0,0.00016438,2]
[401145098,1767975041134,-500.0,0.00016438,2]
[401145100,1767975041144,-500.0,0.00016438,2]
[401145102,1767975041154,-200.0,0.00016438,2]
[401145104,1767975041163,-500.0,0.00016438,2]
[401145106,1767975041173,-500.0,0.00016438,2]
[401145108,1767975041182,-164.95,0.0001644,2]
[401145110,1767975041191,-164.95,0.0001644,2]
[401145112,1767975041200,-152.0,0.00016491,5]
[401145114,1767975041210,-1000.0,0.00016515,2]
[401145116,1767975041219,-838.67683792,0.00016621,2]
[401145118,1767975041228,-1816.79771886,0.00016621,2]
[401145120,1767975041238,-6553.0,0.00016656,2]
[401145122,1767975041248,-4945.573,0.00016656,2]
[401145124,1767975041257,-566.0,0.00016656,2]
[401145126,1767975041267,-152.0,0.00016665,6]
[401145128,1767975041277,-164.6,0.0001669,2]
[401145130,1767975041287,-164.95,0.00016711,2]
[401145132,1767975041296,-164.95,0.00016711,2]
[401145134,1767975041305,-159.89,0.00016712,2]
[401145136,1767975041314,-150.0,0.00016712,2]
[401145138,1767975041323,-22384.14227567,0.00016721,2]
[401145141,1767975041338,-60915.67965701,0.00016721,2]
[401145143,1767975041351,-56171.70898141,0.00016721,2]
[401145145,1767975041360,-4406.51476362,0.00016721,2]
[401145148,1767975041374,-7616.11512361,0.00016721,2]
[401145150,1767975041386,-214856.77735586,0.00016721,2]
[401145182,1767975041659,-320421.43625987,0.00016721,2]
[401145186,1767975041695,-414618.5835,0.00016721,2]
[401145188,1767975041704,-151.0,0.00016721,2]
[401145190,1767975041713,-151.0,0.00016721,2]
[401145191,1767975041722,-151.0,0.00016721,2]
[401145193,1767975041731,-151.0,0.00016721,2]
[401145196,1767975041742,-151.0,0.00016721,2]
[401145198,1767975041752,-151.0,0.00016721,2]
[401145200,1767975041761,-151.0,0.00016721,2]
[401145201,1767975041771,-151.0,0.00016721,2]
[401145203,1767975041780,-151.0,0.00016721,2]
[401145205,1767975041789,-151.0,0.00016721,2]
[401145207,1767975041800,-198.085914,0.00016721,2]
[401145209,1767975041810,-181.526183,0.00016721,2]
[401145211,1767975041819,-181.526183,0.00016721,2]
[401145213,1767975041829,-181.526183,0.00016721,2]
[401145215,1767975041839,-181.526183,0.00016721,2]
[401145218,1767975041848,-151.0,0.00016721,2]
[401145219,1767975041859,-151.0,0.00016721,2]
[401145221,1767975041868,-164.6,0.00016809,2]
[401145223,1767975041877,-152.0,0.00016839,7]
[401145225,1767975041887,-1816.79771883,0.00016877,2]
[401145227,1767975041897,-14863.8660434,0.00016877,2]
[401145229,1767975041906,-10315.79032297,0.000169,2]
[401145231,1767975041915,-164.6,0.00016928,2]
[401145233,1767975041925,-700.71,0.00017,2]
[401145235,1767975041934,-700.71,0.00017,2]
[401145237,1767975041943,-700.71,0.00017,2]
[401145239,1767975041952,-700.71,0.00017,2]
[401145241,1767975041962,-700.71,0.00017,2]
[401145243,1767975041971,-250.0,0.00017,2]
[401145244,1767975041982,-152.0,0.00017013,8]
[401145245,1767975041992,-281.34209607,0.00017046,2]
[401145246,1767975042001,-150.0,0.00017046,2]
[401145247,1767975042010,-200.0,0.00017046,2]
[401145248,1767975042019,-200.0,0.00017046,2]
[401145249,1767975042028,-171.0,0.00017046,2]
[401145250,1767975042037,-194.254,0.00017046,2]
[401145251,1767975042046,-250.0,0.00017046,2]
[401145252,1767975042056,-226.508,0.00017046,2]
[401145253,1767975042065,-211.999,0.00017046,2]
[401145254,1767975042074,-157.382,0.00017046,2]
[401145255,1767975042083,-250.0,0.00017046,2]
[401145257,1767975042092,-243.342,0.00017046,2]
[401145259,1767975042102,-190.931,0.00017046,2]
[401145261,1767975042111,-163.819,0.00017046,2]
[401145263,1767975042119,-211.969,0.00017046,2]
[401145265,1767975042133,-250.0,0.00017046,2]
[401145267,1767975042142,-229.605,0.00017046,2]
[401145269,1767975042150,-169.0,0.00017046,2]
[401145271,1767975042160,-614.0,0.00017046,2]
[401145273,1767975042171,-1330.0,0.00017046,2]
[401145275,1767975042180,-1405.0,0.00017046,2]
[401145277,1767975042189,-505.0,0.00017046,2]
[401145279,1767975042199,-1266.0,0.00017046,2]
[401145281,1767975042208,-1202.14,0.00017046,2]
[401145282,1767975042217,-916.599,0.00017046,2]
[401145284,1767975042227,-164.6,0.00017047,2]
[401145286,1767975042236,-553.64373807,0.00017099,2]
[401145288,1767975042245,-322.6107,0.00017099,2]
[401145290,1767975042255,-1000.0,0.00017112,2]
[401145292,1767975042264,-1816.79771883,0.00017133,2]
[401145295,1767975042275,-214.43976733,0.0001715,2]
[401145296,1767975042284,-164.6,0.00017166,2]
[401145299,1767975042293,-152.0,0.00017186,9]
[401145300,1767975042302,-159.10718443,0.00017189,2]
[401145302,1767975042311,-164.6,0.00017285,2]
[401145304,1767975042321,-333.0,0.00017315,2]
[401145306,1767975042330,-333.0,0.0001732,2]
[401145308,1767975042339,-152.0,0.0001736,10]
[401145310,1767975042348,-1816.79771883,0.00017388,2]
[401145313,1767975042357,-14863.8660434,0.00017389,2]
[401145314,1767975042366,-10315.79032297,0.000174,2]
[401145316,1767975042376,-164.6,0.00017405,2]
[401145318,1767975042386,-1000.0,0.000175,2]
[401145320,1767975042397,-823.0,0.00017522,2]
[401145322,1767975042407,-164.6,0.00017524,2]
[401145324,1767975042416,-152.0,0.00017534,11]
[401145326,1767975042425,-182.01,0.00017556,2]
[401145328,1767975042434,-165.88,0.00017582,2]
[401145330,1767975042443,-1826.0,0.000176,2]
[401145332,1767975042452,-307.0,0.00017607,2]
[401145334,1767975042462,-2195.93041534,0.0001764,2]
[401145336,1767975042471,-164.6,0.00017643,2]
[401145338,1767975042480,-1816.79771883,0.00017644,2]
[401145340,1767975042489,-574.12855637,0.00017647,2]
[401145342,1767975042498,-3292.0,0.00017698,2]
[401145344,1767975042507,-150.0,0.00017699,2]
[401145346,1767975042517,-150.0,0.00017699,2]
[401145348,1767975042526,-150.0,0.00017699,2]
[401145350,1767975042535,-150.0,0.00017699,2]
[401145352,1767975042544,-150.0,0.00017699,2]
[401145354,1767975042553,-150.0,0.00017699,2]
[401145356,1767975042562,-150.0,0.00017699,2]
[401145358,1767975042571,-150.0,0.00017699,2]
[401145360,1767975042580,-150.0,0.00017699,2]
[401145362,1767975042589,-150.0,0.00017699,2]
[401145364,1767975042598,-150.0,0.00017699,2]
[401145366,1767975042607,-150.0,0.00017699,2]
[401145368,1767975042616,-150.0,0.00017699,2]
[401145370,1767975042626,-150.0,0.00017699,2]
[401145372,1767975042635,-500.0,0.00017699,2]
[401145374,1767975042644,-152.0,0.00017708,12]
[401145376,1767975042654,-1000.0,0.00017709,2]
[401145378,1767975042663,-150.0,0.00017754,2]
[401145380,1767975042672,-150.0,0.00017754,2]
[401145383,1767975042682,-150.0,0.00017754,2]
[401145386,1767975042691,-150.0,0.00017754,2]
[401145389,1767975042700,-150.0,0.00017754,2]
[401145391,1767975042709,-150.0,0.00017754,2]